bitfinex-derivatives/quotes_SOLF0:USTF0_20241222
["timestamp","ask_amount","ask_price","bid_price","bid_amount"]
[1734886180415,2.7341,183.01,182.98,1.674]
[1734886182010,3.06,183.0,182.96,114.18907336]
[1734886182210,3.06,182.99,182.96,89.42604917]
[1734886182410,3.06,182.98,182.96,89.42604917]
[1734886182609,3.06,182.97,182.96,89.42604917]
[1734886182806,5.7947,182.97,182.96,89.42604917]
[1734886183013,5.7947,182.97,182.96,89.03290917]
[1734886183413,3.06,182.97,182.91,1.7209]
[1734886183614,3.06,182.97,182.89,151.12619978]
[1734886184616,2.7357,182.9,182.89,1.7254]
[1734886186215,2.7356,182.91,182.89,1.7254]
[1734886186819,3.06,182.97,182.86,4.4572]
[1734886187218,3.06,182.97,182.86,1.7209]
[1734886187520,36.63984373,182.97,182.85,1.6959]
[1734886187716,1.7029,182.96,182.85,1.6959]
[1734886187913,2.7365,182.85,182.84,18.57644913]
[1734886188719,2.7368,182.84,182.81,1.7009]
[1734886189317,3.06,182.86,182.81,1.7009]
[1734886189518,2.7369,182.83,182.81,1.7009]
[1734886190521,2.7369,182.82,182.81,1.7009]
[1734886191514,3.06,182.86,182.78,1.6255]
[1734886192815,3.06,182.86,182.74,1.5734]
[1734886193021,2.7379,182.76,182.74,1.5734]
[1734886193527,3.06,182.8,182.74,1.5734]
[1734886193725,2.738,182.75,182.74,1.5734]
[1734886194024,3.06,182.75,182.68,88.76663571]
[1734886194227,2.7389,182.7,182.65,6.1241]
[1734886194524,2.7389,182.7,182.65,3.3848]
[1734886195423,3.06,182.75,182.65,3.3848]
[1734886195624,2.739,182.69,182.65,3.3848]
[1734886196021,2.7392,182.67,182.65,3.3848]
[1734886196426,3.06,182.7,182.65,3.3848]
[1734886196622,2.7393,182.67,182.65,3.3848]
[1734886197322,2.7393,182.66,182.65,3.3848]
[1734886197522,3.06,182.7,182.59,2.7402]
[1734886197823,3.06,182.7,182.6,1.6624]
[1734886198322,5.7987,182.71,182.61,33.57984373]
[1734886198516,3.06,182.71,182.61,33.57984373]
[1734886198921,3.06,182.71,182.64,33.57984373]
[1734886200429,1.6537,182.82,182.64,36.63984373]
[1734886200728,3.06,182.81,182.67,33.57984373]
[1734886200922,2.7387,182.71,182.64,36.63984373]
[1734886201123,3.06,182.73,182.61,33.57984373]
[1734886201323,3.06,182.72,182.6,1.6624]
[1734886201526,3.06,182.71,182.6,1.6624]
[1734886202624,2.739,182.68,182.6,1.6624]
[1734886202819,3.06,182.71,182.6,1.6624]
[1734886203131,2.7389,182.69,182.61,33.57984373]
[1734886203525,3.06,182.71,182.61,33.57984373]
[1734886204124,3.06,182.71,182.65,2.7393]
[1734886205221,1.6515,182.83,182.67,2.7392]
[1734886205424,3.06,182.82,182.71,33.57984373]
[1734886205927,3.06,182.82,182.72,1.5844]
[1734886206127,2.7375,182.79,182.74,2.7381]
[1734886206528,3.06,182.82,182.74,2.7381]
[1734886207125,3.06,182.82,182.75,2.7379]
[1734886207425,33.57984373,182.91,182.74,33.57984373]
[1734886207634,3.96449897,182.9,182.75,1.7016]
[1734886207934,3.06,182.89,182.77,33.57984373]
[1734886208134,3.2761,182.91,182.8,33.57984373]
[1734886208329,33.57984373,182.98,182.8,33.57984373]
[1734886208529,3.06,182.9,182.81,3.217]
[1734886208730,2.7363,182.87,182.82,2.7369]
[1734886210331,2.7359,182.9,182.83,33.57984373]
[1734886210527,3.06,182.89,182.81,3.217]
[1734886210926,3.06,182.89,182.77,33.57984373]
[1734886211131,3.06,182.89,182.75,1.7016]
[1734886211328,3.3332,182.88,182.75,1.7016]
[1734886211735,3.06,182.87,182.75,1.7016]
[1734886212135,2.7371,182.82,182.76,2.7377]
[1734886212336,3.06,182.82,182.75,1.7016]
[1734886213036,2.7371,182.81,182.77,2.7377]
[1734886213336,3.06,182.82,182.75,1.7016]
[1734886213537,3.06,182.82,182.79,2.7374]
[1734886213838,3.06,182.82,182.75,1.7016]
[1734886215132,3.06,182.85,182.77,33.57984373]
[1734886215526,3.06,182.85,182.81,2.737]
[1734886215931,3.06,182.85,182.77,33.57984373]
[1734886216133,3.06,182.85,182.8,2.7372]
[1734886216637,2.7365,182.85,182.8,2.7372]
[1734886217137,3.06,182.86,182.81,2.7371]
[1734886217336,3.06,182.86,182.77,33.57984373]
[1734886217638,3.06,182.86,182.82,2.7369]
[1734886217836,2.7363,182.87,182.77,36.63984373]
[1734886218131,3.0646,182.95,182.8,33.57984373]
[1734886218132,3.06,182.9,182.8,33.57984373]
[1734886218332,3.06,182.9,182.81,3.3624]
[1734886218728,5.7959,182.9,182.81,3.3624]
[1734886218932,3.06,182.9,182.84,2.7365]
[1734886219327,3.06,182.9,182.81,3.3624]
[1734886219328,3.06,182.89,182.83,2.7367]
[1734886219539,1.6559,182.95,182.81,3.3624]
[1734886219733,3.06,182.92,182.81,3.3624]
[1734886219939,2.7359,182.9,182.85,2.7363]
[1734886220239,3.06,182.92,182.85,2.7363]
[1734886220540,2.7358,182.9,182.85,2.7363]
[1734886220838,3.06,182.92,182.81,3.3624]
[1734886221034,3.06,182.95,182.86,33.57984373]
[1734886221336,3.06,182.95,182.86,2.7363]
[1734886221738,2.7357,182.91,182.83,33.57984373]
[1734886221936,2.7357,182.91,182.86,2.7363]
[1734886222137,3.06,182.95,182.86,2.7363]
[1734886222838,2.7352,182.94,182.86,33.57984373]
[1734886223235,3.06,182.95,182.86,33.57984373]
[1734886224539,3.06,182.97,182.86,33.57984373]
[1734886224841,1.5827,183.04,182.89,33.57984373]
[1734886225041,3.06,183.03,182.9,3.2957]
[1734886225840,2.7347,182.98,182.93,2.7351]
[1734886226043,3.06,183.03,182.93,2.7351]
[1734886227136,36.63984373,183.03,182.86,33.57984373]
[1734886227336,33.57984373,183.0,182.84,93.57363571]
[1734886227743,2.7359,182.9,182.86,2.7362]
[1734886228546,3.06,182.92,182.84,4.807]
[1734886228745,3.06,182.92,182.86,33.57984373]
[1734886228945,2.7351,182.94,182.9,2.7356]
[1734886229147,3.06,182.96,182.86,33.57984373]
[1734886229644,2.7353,182.93,182.86,33.57984373]
[1734886230743,3.06,182.96,182.86,33.57984373]
[1734886231547,2.7352,182.94,182.9,2.7356]
[1734886231745,3.06,182.96,182.86,33.57984373]
[1734886232250,2.7357,182.91,182.87,2.7361]
[1734886232543,3.06,182.91,182.84,4.807]
[1734886232744,3.06,182.91,182.84,3.2376]
[1734886232949,3.06,182.91,182.79,35.26794373]
[1734886233350,3.06,182.91,182.79,38.00534373]
[1734886233552,1.6485,182.9,182.79,38.00534373]
[1734886233848,2.7367,182.84,182.79,38.00534373]
[1734886234050,3.06,182.85,182.79,38.00534373]
[1734886234242,3.06,182.85,182.77,3.2558]
[1734886234446,2.7368,182.83,182.77,3.2558]
[1734886234650,3.06,182.85,182.77,3.2558]
[1734886235154,2.7373,182.8,182.77,3.2558]
[1734886235654,3.06,182.85,182.74,1.6881]
[1734886235954,3.06,182.84,182.7,92.15633571]
[1734886236149,4.6768,182.84,182.7,92.15633571]
[1734886236450,2.7381,182.75,182.7,94.89503571]
[1734886236651,3.06,182.77,182.7,92.15633571]
[1734886236949,3.06,182.81,182.7,3.3897]
[1734886237446,2.7375,182.79,182.7,3.3897]
[1734886237647,3.06,182.82,182.72,33.57984373]
[1734886238455,2.7372,182.81,182.75,2.738]
[1734886238755,2.7372,182.81,182.72,33.57984373]
[1734886238950,2.7372,182.81,182.75,2.7378]
[1734886239851,2.7372,182.81,182.76,2.7378]
[1734886240157,1.7149,182.89,182.75,33.57984373]
[1734886240158,3.06,182.83,182.75,33.57984373]
[1734886240344,1.7149,182.89,182.76,1.5832]
[1734886240345,3.06,182.86,182.76,1.5832]
[1734886240747,2.7366,182.85,182.79,2.7374]
[1734886240955,3.06,182.86,182.77,18.57644913]
[1734886242052,1.7149,182.89,182.76,1.5832]
[1734886242255,3.06,182.88,182.76,1.5832]
[1734886242948,3.06,182.88,182.77,33.57984373]
[1734886243261,3.06,182.87,182.77,33.57984373]
[1734886243555,3.06,182.87,182.82,2.7369]
[1734886243857,3.06,182.87,182.78,3.3102]
[1734886244054,2.7366,182.85,182.78,6.0476]
[1734886244358,3.06,182.87,182.78,92.07683571]
[1734886244756,2.7367,182.84,182.79,2.7373]
[1734886245959,2.7368,182.83,182.79,2.7373]
[1734886246548,3.06,182.87,182.77,33.57984373]
[1734886246753,3.06,182.87,182.76,88.76663571]
[1734886246754,2.7374,182.79,182.76,88.76663571]
[1734886247257,3.06,182.82,182.77,2.7377]
[1734886247555,3.06,182.82,182.76,88.76663571]
[1734886247758,3.06,182.82,182.8,2.7372]
[1734886247955,3.06,182.82,182.75,35.31924373]
[1734886248460,5.797,182.82,182.75,35.31924373]
[1734886248659,3.06,182.82,182.75,35.31924373]
[1734886248963,3.06,182.82,182.76,18.65193953]
[1734886249862,3.06,182.82,182.79,2.7372]
[1734886250457,3.06,182.82,182.78,2.7375]
[1734886251663,3.06,182.82,182.79,2.7374]
[1734886252059,1.6485,182.9,182.78,33.57984373]
[1734886252360,3.06,182.89,182.78,33.57984373]
[1734886252859,1.7025,182.95,182.81,33.57984373]
[1734886253059,2.7357,182.91,182.87,2.7361]
[1734886254063,3.06,182.96,182.84,36.63984373]
[1734886254264,3.06,182.96,182.87,33.57984373]
[1734886254765,2.7351,182.95,182.87,33.57984373]
[1734886255263,3.0991,183.01,182.87,33.57984373]
[1734886255264,1.6897,183.01,182.87,33.57984373]
[1734886255462,3.06,182.97,182.87,33.57984373]
[1734886255965,1.4076,183.06,182.9,33.57984373]
[1734886256157,3.06,183.05,182.93,33.57984373]
[1734886256354,3.06,183.06,182.96,33.57984373]
[1734886256654,3.06,183.06,182.94,3.06]
[1734886257056,3.06,183.06,182.96,2.7348]
[1734886257861,2.7341,183.02,182.96,2.7348]
[1734886258061,3.06,183.06,182.96,2.7348]
[1734886258267,3.06,183.06,182.94,3.06]
[1734886259262,2.7341,183.02,182.96,2.7347]
[1734886259562,3.06,183.06,182.96,2.7347]
[1734886259768,2.734,183.02,182.96,2.7347]
[1734886260268,3.06,183.06,182.94,3.06]
[1734886260467,2.7344,182.99,182.93,33.57984373]
[1734886260665,3.06,183.06,182.93,33.57984373]
[1734886260969,2.7339,183.03,182.93,33.57984373]
[1734886261165,3.06,183.06,182.93,33.57984373]
[1734886261564,2.7338,183.03,182.93,33.57984373]
[1734886261968,2.7338,183.03,182.97,2.7346]
[1734886262268,2.7338,183.03,182.93,33.57984373]
[1734886262460,2.7337,183.04,182.99,2.7342]
[1734886262661,3.04,183.07,182.96,36.61984373]
[1734886262866,1.6897,183.09,182.96,36.61984373]
[1734886262867,3.04,183.08,182.97,3.04]
[1734886263064,4.7297,183.09,182.97,3.04]
[1734886263362,3.04,183.08,182.97,3.04]
[1734886264171,3.04,183.09,182.99,33.57984373]
[1734886264468,3.04,183.09,183.0,4.9322]
[1734886264967,1.641,183.14,183.02,33.57984373]
[1734886265167,3.04,183.13,183.02,36.61984373]
[1734886265972,3.04,183.13,183.02,33.57984373]
[1734886266161,4.7582,183.13,183.02,33.57984373]
[1734886266560,4.7582,183.13,183.03,2.7338]
[1734886266767,4.7582,183.13,183.02,33.57984373]
[1734886266967,4.7582,183.13,183.0,3.2986]
[1734886267167,33.57984373,183.09,182.93,36.85254373]
[1734886267466,3.04,183.08,182.93,36.85254373]
[1734886267663,2.7344,183.0,182.95,2.7349]
[1734886267868,3.04,183.01,182.93,36.85254373]
[1734886268072,2.7345,182.99,182.94,2.7351]
[1734886268372,3.04,183.01,182.91,1.65]
[1734886268971,3.04,183.01,182.91,35.22984373]
[1734886269873,3.04,183.01,182.95,2.7349]
[1734886270173,3.04,183.01,182.91,35.22984373]
[1734886270670,2.7344,182.99,182.94,2.7351]
[1734886271363,3.04,183.01,182.91,35.22984373]
[1734886272675,3.04,183.01,182.88,1.6656]
[1734886272877,33.57984373,182.99,182.88,1.6656]
[1734886273066,2.7359,182.89,182.86,1.6806]
[1734886273471,3.04,182.92,182.83,90.37713571]
[1734886273678,3.04,182.92,182.83,1.6105]
[1734886273872,3.04,182.92,182.8,3.3097]
[1734886274376,2.736,182.89,182.8,3.3097]
[1734886274577,3.04,182.92,182.8,1.7121]
[1734886274780,33.57984373,182.9,182.8,1.7121]
[1734886275377,3.04,182.92,182.8,1.7121]
[1734886275676,2.7365,182.85,182.81,2.737]
[1734886276273,33.57984373,182.93,182.8,1.7121]
[1734886276474,3.04,182.93,182.82,33.57984373]
[1734886276678,3.04,182.93,182.83,1.5841]
[1734886277980,3.04,182.93,182.89,2.7359]
[1734886279280,2.7355,182.92,182.87,2.7362]
[1734886279477,3.04,182.93,182.83,4.6241]
[1734886280677,2.7355,182.92,182.83,4.6241]
[1734886281988,2.7355,182.92,182.86,2.7362]
[1734886282186,3.04,182.93,182.83,4.6241]
[1734886282780,2.7357,182.9,182.85,2.7363]
[1734886283078,3.04,182.93,182.85,33.57984373]
[1734886283476,3.04,182.93,182.89,2.7357]
[1734886284786,2.7347,182.97,182.89,2.7357]
[1734886284985,3.04,182.96,182.89,2.7357]
[1734886285283,3.04,182.96,182.88,2.736]
[1734886285484,2.7354,182.93,182.88,2.736]
[1734886286082,2.7354,182.93,182.89,2.7358]
[1734886288580,5.7749,182.96,182.91,2.7355]
[1734886288981,33.57984373,183.21,182.95,67.15968746]
[1734886289182,1.7061,183.14,183.04,33.57984373]
[1734886289384,1.7061,183.14,183.04,36.61984373]
[1734886290189,1.7061,183.14,183.04,33.57984373]
[1734886290485,1.7061,183.14,183.05,3.04]
[1734886290885,1.7061,183.14,183.07,2.7331]
[1734886291284,4.4383,183.14,183.09,2.7329]
[1734886293488,1.7061,183.14,183.09,2.7329]
[1734886293688,2.7323,183.13,183.09,2.7329]
[1734886295391,1.7061,183.14,183.09,2.7329]
[1734886295588,4.4383,183.14,183.09,2.7329]
[1734886295791,1.7061,183.14,183.07,33.57984373]
[1734886296091,33.57984373,183.24,183.07,33.57984373]
[1734886296386,6.3646,183.23,183.1,33.57984373]
[1734886296692,0.90264679,183.22,183.12,2.7324]
[1734886296881,2.7317,183.17,183.1,33.57984373]
[1734886297085,3.04,183.2,183.1,33.57984373]
[1734886297292,3.3246,183.23,183.1,36.61984373]
[1734886297494,3.04,183.22,183.14,2.732]
[1734886299085,3.04,183.22,183.13,33.57984373]
[1734886299284,3.3246,183.23,183.13,33.57984373]
[1734886300591,1.6608,183.23,183.17,2.7316]
[1734886300786,1.6608,183.23,183.13,33.57984373]
[1734886300985,1.6608,183.23,183.11,2.7326]
[1734886301184,1.6608,183.23,183.09,33.57984373]
[1734886301590,1.6608,183.23,183.09,36.31274373]
[1734886301988,1.6065,183.27,183.12,33.57984373]
[1734886302190,2.7313,183.2,183.15,33.57984373]
[1734886302592,3.04,183.24,183.15,33.57984373]
[1734886302792,1.6715,183.23,183.15,33.57984373]
[1734886303095,1.6715,183.23,183.12,33.57984373]
[1734886303293,2.7314,183.19,183.14,2.732]
[1734886304890,2.7312,183.21,183.12,33.57984373]
[1734886305093,1.6715,183.23,183.15,33.57984373]
[1734886305593,2.7308,183.24,183.2,2.7312]
[1734886306194,2.7309,183.23,183.16,3.3331]
[1734886306588,3.04,183.26,183.16,3.3331]
[1734886307392,1.575,183.29,183.16,3.3331]
[1734886307598,4.615,183.29,183.18,33.57984373]
[1734886307993,2.7302,183.28,183.18,33.57984373]
[1734886308194,2.7302,183.28,183.21,33.57984373]
[1734886309097,2.7302,183.28,183.23,2.7307]
[1734886309596,2.7302,183.27,183.23,2.7307]
[1734886311590,2.7304,183.26,183.21,36.31084373]
[1734886311993,1.575,183.29,183.21,36.31084373]
[1734886312386,1.575,183.29,183.21,33.57984373]
[1734886312587,1.575,183.29,183.18,33.57984373]
[1734886312997,2.7311,183.22,183.18,33.57984373]
[1734886313297,3.04,183.26,183.18,33.57984373]
[1734886315092,2.7312,183.21,183.18,33.57984373]
[1734886318094,2.7312,183.21,183.17,2.7317]
[1734886318801,1.575,183.29,183.16,23.94196633]
[1734886319001,4.615,183.29,183.16,23.94196633]
[1734886319400,4.615,183.29,183.19,20.60886633]
[1734886320003,4.615,183.29,183.19,23.64886633]
[1734886320400,2.7306,183.25,183.21,2.7311]
[1734886320795,4.615,183.29,183.19,23.64886633]
[1734886321698,4.615,183.29,183.16,23.94196633]
[1734886322004,25.22386633,183.29,183.16,3.3331]
[1734886322205,2.7322,183.14,183.1,109.37550204]
[1734886322404,3.04,183.19,183.1,109.37550204]
[1734886322805,2.7319,183.16,183.12,2.7324]
[1734886323303,3.04,183.19,183.1,22.27926633]
[1734886323304,2.732,183.15,183.1,22.27926633]
[1734886323503,3.04,183.19,183.1,22.27926633]
[1734886324206,3.04,183.19,183.1,35.18010286]
[1734886324609,2.7317,183.18,183.12,2.7323]
[1734886324807,2.7317,183.18,183.1,35.18010286]
[1734886325208,2.7317,183.18,183.13,2.7322]
[1734886325509,2.7317,183.18,183.1,35.18010286]
[1734886326003,2.7317,183.18,183.1,123.94673857]
[1734886326404,3.04,183.19,183.1,123.94673857]
[1734886326608,2.7319,183.16,183.11,107.36724326]
[1734886326805,3.04,183.19,183.11,107.36724326]
[1734886327004,2.7323,183.14,183.11,107.36724326]
[1734886327400,3.04,183.19,183.12,2.7324]
[1734886327706,2.7317,183.17,183.1,1.6704]
[1734886327900,3.1157,183.25,183.1,35.18010286]
[1734886328214,2.7316,183.18,183.1,35.18010286]
[1734886328509,3.04,183.23,183.1,123.94673857]
[1734886328906,2.7315,183.19,183.1,123.94673857]
[1734886329110,2.7315,183.19,183.14,2.732]
[1734886329410,2.7315,183.19,183.12,3.04]
[1734886329610,3.04,183.24,183.12,3.04]
[1734886330308,2.7314,183.19,183.15,2.7319]
[1734886330513,3.04,183.24,183.13,18.61934018]
[1734886331221,2.7319,183.16,183.13,21.35154018]
[1734886331411,3.04,183.19,183.13,2.7322]
[1734886331713,3.04,183.2,183.13,2.7322]
[1734886332609,3.04,183.2,183.11,88.76663571]
[1734886332811,3.04,183.2,183.12,88.76663571]
[1734886332812,35.09830286,183.19,183.12,88.76663571]
[1734886333116,2.7323,183.13,183.12,88.76663571]
[1734886334309,2.7323,183.13,183.07,1.5917]
[1734886335313,5.7722,183.14,183.07,1.5917]
[1734886335520,5.7722,183.14,183.08,132.24787673]
[1734886335817,3.04,183.14,183.08,132.24787673]
[1734886336017,2.7323,183.13,183.09,2.7328]
[1734886336218,3.04,183.14,183.08,132.24787673]
[1734886336615,2.7324,183.13,183.09,21.36771758]
[1734886337520,3.04,183.14,183.1,2.7327]
[1734886337722,5.7722,183.14,183.1,2.7327]
[1734886338019,3.04,183.14,183.07,90.35833571]
[1734886338214,2.7324,183.13,183.09,2.7329]
[1734886339019,2.7325,183.12,183.08,2.733]
[1734886339225,3.04,183.14,183.07,90.35833571]
[1734886339921,2.7329,183.1,183.07,90.35833571]
[1734886340224,2.7329,183.1,183.07,1.5917]
[1734886340624,3.04,183.14,183.07,1.5917]
[1734886341323,2.7324,183.13,183.09,2.7328]
[1734886341622,3.04,183.14,183.07,1.5917]
[1734886341822,4.6286,183.19,183.08,3.04]
[1734886342019,3.04,183.21,183.09,33.50970286]
[1734886342232,2.7308,183.23,183.18,2.7314]
[1734886342520,2.7308,183.23,183.15,33.50970286]
[1734886342711,4.6624,183.26,183.16,1.6627]
[1734886342919,2.7311,183.22,183.17,2.7317]
[1734886343215,2.7311,183.22,183.16,1.6627]
[1734886343421,2.7311,183.22,183.18,2.7315]
[1734886344716,3.04,183.27,183.18,33.50970286]
[1734886344919,1.6187,183.32,183.18,33.50970286]
[1734886345115,3.9421,183.31,183.19,3.04]
[1734886345319,2.7299,183.29,183.24,2.7306]
[1734886345617,3.04,183.36,183.24,36.54970286]
[1734886345814,2.7293,183.34,183.25,3.2939]
[1734886346015,3.04,183.36,183.28,2.7299]
[1734886346618,2.7293,183.33,183.27,2.7301]
[1734886347021,3.04,183.35,183.25,4.9438]
[1734886347215,2.7295,183.32,183.25,7.6742]
[1734886347415,2.7295,183.32,183.25,4.9438]
[1734886348117,2.7295,183.32,183.27,2.7302]
[1734886348917,2.7293,183.33,183.27,2.7302]
[1734886349422,2.7296,183.31,183.25,4.9438]
[1734886349720,3.04,183.35,183.25,25.5330867]
[1734886351523,2.7298,183.3,183.25,25.5330867]
[1734886352127,2.7298,183.3,183.25,28.2635867]
[1734886352325,3.04,183.35,183.25,3.2939]
[1734886352525,3.94188982,183.34,183.25,1.6459]
[1734886352725,3.04,183.34,183.25,1.6459]
[1734886352926,3.04,183.34,183.19,22.1863867]
[1734886353121,2.63069173,183.33,183.2,2.7311]
[1734886353324,1.7287,183.33,183.2,2.7311]
[1734886353530,1.7287,183.33,183.22,20.5892867]
[1734886353732,1.7287,183.33,183.25,2.7305]
[1734886353733,4.7687,183.33,183.25,2.7305]
[1734886353926,3.04,183.33,183.25,2.7305]
[1734886354122,2.7299,183.3,183.26,2.7303]
[1734886355119,3.04,183.33,183.25,20.5892867]
[1734886355630,1.6818,183.39,183.28,20.5892867]
[1734886355929,3.04,183.37,183.28,20.5892867]
[1734886356832,2.7295,183.33,183.28,2.73]
[1734886357029,3.04,183.37,183.28,2.73]
[1734886357224,3.04,183.37,183.26,2.7303]
[1734886357432,0.9018036,183.36,183.25,20.5892867]
[1734886357734,2.7297,183.31,183.27,2.7302]
[1734886357933,3.04,183.37,183.25,20.5892867]
[1734886358129,0.90179574,183.36,183.25,20.5892867]
[1734886358329,2.7299,183.3,183.25,23.3197867]
[1734886358530,2.7299,183.3,183.25,20.5892867]
[1734886358931,3.04,183.37,183.25,20.5892867]
[1734886359233,3.04,183.37,183.28,20.5892867]
[1734886359735,3.04,183.37,183.29,3.3275]
[1734886360131,1.6818,183.39,183.29,3.3275]
[1734886360331,4.7218,183.39,183.29,3.3275]
[1734886360534,1.6818,183.39,183.29,3.3275]
[1734886360829,4.7218,183.39,183.29,3.3275]
[1734886361035,2.729,183.36,183.32,2.7294]
[1734886363235,2.7287,183.38,183.33,2.7293]
[1734886363633,3.04,183.41,183.33,2.7293]
[1734886364136,2.7288,183.37,183.33,2.7293]
[1734886365434,2.7288,183.37,183.29,3.3275]
[1734886365640,2.7288,183.37,183.34,2.7292]
[1734886365838,2.7288,183.37,183.29,3.3275]
[1734886366539,2.7288,183.37,183.31,2.7296]
[1734886366738,2.7288,183.37,183.29,3.3275]
[1734886367543,2.7289,183.36,183.32,2.7293]
[1734886367734,2.7289,183.36,183.29,3.3275]
[1734886368039,2.7289,183.36,183.32,2.7294]
[1734886368436,2.7289,183.36,183.29,3.3275]
[1734886368638,2.7286,183.39,183.35,2.729]
[1734886368842,3.04,183.42,183.31,20.5892867]
[1734886369236,2.7289,183.36,183.32,2.7294]
[1734886369937,2.7291,183.35,183.31,23.3188867]
[1734886370138,3.04,183.43,183.31,20.5892867]
[1734886370644,2.7287,183.38,183.34,2.7291]
[1734886371436,3.04,183.43,183.31,20.5892867]
[1734886372142,2.7288,183.37,183.33,2.7293]
[1734886372945,3.04,183.43,183.31,20.5892867]
[1734886373141,2.729,183.36,183.32,2.7295]
[1734886373737,2.7293,183.33,183.29,3.3275]
[1734886374445,2.7293,183.33,183.29,6.0574]
[1734886374944,2.7292,183.34,183.29,3.3275]
[1734886375149,2.7292,183.34,183.3,2.7297]
[1734886375343,3.04,183.38,183.29,3.3275]
[1734886375947,2.729,183.35,183.31,2.7295]
[1734886376146,2.729,183.35,183.29,3.3275]
[1734886376346,3.04,183.38,183.29,3.3275]
[1734886376647,2.729,183.36,183.32,2.7294]
[1734886377151,3.04,183.38,183.29,3.3275]
[1734886377351,2.7292,183.34,183.31,2.7296]
[1734886377842,3.04,183.38,183.29,3.3275]
[1734886377843,2.7296,183.31,183.29,1.6621]
[1734886378042,3.04,183.38,183.27,88.76663571]
[1734886378247,1.6922,183.37,183.27,88.76663571]
[1734886378746,2.7298,183.31,183.26,113.60627998]
[1734886379250,2.7298,183.31,183.27,2.7301]
[1734886379447,3.04,183.38,183.26,113.60627998]
[1734886379847,2.7296,183.31,183.28,2.73]
[1734886380050,2.7296,183.31,183.25,3.04]
[1734886380346,15.90974152,183.38,183.25,12.86974152]
[1734886381046,12.86974152,183.35,183.26,18.63616087]
[1734886381242,2.7303,183.27,183.26,18.63616087]
[1734886381647,3.04,183.31,183.26,18.63616087]
[1734886382046,3.04,183.31,183.23,92.00493571]
[1734886382251,3.04,183.4,183.23,112.59717121]
[1734886382453,0.90170037,183.39,183.26,20.5922355]
[1734886382648,3.04,183.39,183.26,23.6322355]
[1734886383249,3.04,183.39,183.3,2.7297]
[1734886383754,3.04,183.38,183.26,23.6322355]
[1734886384047,2.7292,183.34,183.26,23.6322355]
[1734886384255,2.7292,183.34,183.27,88.76663571]
[1734886384447,3.04,183.38,183.31,2.7295]
[1734886384645,2.7292,183.34,183.31,2.7295]
[1734886385254,2.729,183.36,183.32,2.7295]
[1734886385548,3.04,183.38,183.28,18.64693791]
[1734886386145,2.7291,183.35,183.31,2.7295]
[1734886386651,3.04,183.38,183.28,88.76663571]
[1734886387151,2.7295,183.32,183.28,91.49653571]
[1734886387353,3.04,183.38,183.28,88.76663571]
[1734886387854,2.7295,183.32,183.28,2.73]
[1734886388550,2.7297,183.31,183.28,2.73]
[1734886389451,2.7297,183.31,183.25,91.80663571]
[1734886390050,2.7297,183.31,183.26,88.76663571]
[1734886390545,2.7297,183.31,183.28,2.7301]
[1734886390954,2.7297,183.31,183.27,18.6737989]
[1734886391150,2.7297,183.31,183.27,21.4039989]
[1734886391356,2.7298,183.3,183.27,18.6737989]
[1734886391554,2.7298,183.3,183.27,21.4039989]
[1734886392060,2.7297,183.31,183.27,21.4039989]
[1734886392355,3.04,183.38,183.26,109.35887121]
[1734886392757,2.7295,183.32,183.28,2.73]
[1734886392955,3.04,183.38,183.26,88.76663571]
[1734886393154,3.04,183.38,183.28,88.76663571]